lending/lending_fUSD_20260306
["ID","MTS","AMOUNT","RATE_DAILY","PERIOD"]
[407859112,1772837090186,-500.0,0.00049899,120]
[407859113,1772837090245,-599.60298507,0.00049899,120]
[407859114,1772837090300,-151.0,0.00049899,120]
[407859115,1772837090356,-500.0,0.00049899,120]
[407859116,1772837090414,-151.0,0.00049899,120]
[407859117,1772837090471,-242.66150145,0.00049899,120]
[407859118,1772837090530,-621.78829552,0.00049899,120]
[407859119,1772837090587,-151.0,0.00049899,120]
[407859120,1772837090655,-151.0,0.00049899,120]
[407859121,1772837090711,-500.0,0.00049899,120]
[407859122,1772837090767,-500.0,0.00049899,120]
[407859123,1772837090997,-151.0,0.00049899,120]
[407859124,1772837091054,-500.0,0.00049899,120]
[407859125,1772837091113,-500.0,0.00049899,120]
[407859126,1772837091172,-500.0,0.00049899,120]
[407859127,1772837091230,-151.0,0.00049899,120]
[407859128,1772837091290,-500.0,0.00049899,120]
[407859129,1772837091350,-500.0,0.00049899,120]
[407859130,1772837091410,-151.0,0.00049899,120]
[407859131,1772837091469,-243.62459014,0.00049899,120]
[407859132,1772837091527,-151.0,0.00049899,120]
[407859133,1772837091582,-500.0,0.00049899,120]
[407859134,1772837091637,-151.0,0.00049899,120]
[407859135,1772837091693,-151.0,0.00049899,120]
[407859136,1772837091743,-500.0,0.00049899,120]
[407859137,1772837091794,-151.0,0.00049899,120]
[407859138,1772837091847,-500.0,0.00049899,120]
[407859139,1772837091904,-644.79446246,0.00049899,120]
[407859140,1772837091957,-151.0,0.00049899,120]
[407859141,1772837092009,-500.0,0.00049899,120]
[407859142,1772837092062,-151.0,0.00049899,120]
[407859143,1772837092116,-668.65185757,0.00049899,120]
[407859144,1772837092170,-151.0,0.00049899,120]
[407859145,1772837092222,-500.0,0.00049899,120]
[407859146,1772837092276,-151.0,0.00049899,120]
[407859147,1772837092330,-693.3919763,0.00049899,120]
[407859148,1772837092383,-500.0,0.00049899,120]
[407859149,1772837092436,-151.0,0.00049899,120]
[407859150,1772837092488,-500.0,0.00049899,120]
[407859151,1772837092539,-500.0,0.00049899,120]
[407859152,1772837092590,-151.0,0.00049899,120]
[407859153,1772837092649,-719.04747942,0.00049899,120]
[407859154,1772837092703,-500.0,0.00049899,120]
[407859155,1772837092755,-151.0,0.00049899,120]
[407859156,1772837092807,-151.0,0.00049899,120]
[407859157,1772837092859,-500.0,0.00049899,120]
[407859158,1772837092915,-745.65223616,0.00049899,120]
[407859159,1772837092967,-151.0,0.00049899,120]
[407859160,1772837093022,-151.0,0.00049899,120]
[407859161,1772837093074,-500.0,0.00049899,120]
[407859162,1772837093131,-773.2413689,0.00049899,120]
[407859163,1772837093188,-151.0,0.00049899,120]
[407859164,1772837093245,-539.0,0.00049899,120]
[407859165,1772837093300,-500.0,0.00049899,120]
[407859166,1772837093356,-500.0,0.00049899,120]
[407859167,1772837093412,-801.85129955,0.00049899,120]
[407859168,1772837093467,-151.0,0.00049899,120]
[407859169,1772837093522,-500.0,0.00049899,120]
[407859170,1772837093580,-831.51979763,0.00049899,120]
[407859171,1772837093635,-1223.0,0.00049899,120]
[407859172,1772837093691,-151.0,0.00049899,120]
[407859173,1772837093742,-500.0,0.00049899,120]
[407859174,1772837093795,-862.28603014,0.00049899,120]
[407859175,1772837093849,-500.0,0.00049899,120]
[407859176,1772837093903,-151.0,0.00049899,120]
[407859177,1772837093958,-500.0,0.00049899,120]
[407859178,1772837094018,-894.19061326,0.00049899,120]
[407859179,1772837094069,-500.0,0.00049899,120]
[407859180,1772837094120,-500.0,0.00049899,120]
[407859181,1772837094171,-500.0,0.00049899,120]
[407859182,1772837094223,-408.6738188,0.00049899,120]
[407859183,1772837094273,-151.0,0.00049899,120]
[407859184,1772837094327,-500.0,0.00049899,120]
[407859185,1772837094383,-927.27566595,0.00049899,120]
[407859186,1772837094438,-151.0,0.00049899,120]
[407859187,1772837094492,-160.0155615,0.00049899,120]
[407859188,1772837094548,-500.0,0.00049899,120]
[407859189,1772837094606,-961.58486559,0.00049899,120]
[407859190,1772837094661,-2134913.67906975,0.000499,120]
[407859191,1772837094713,-5000.0,0.000499,120]
[407859192,1772837094767,-600.0,0.000499,120]
[407859193,1772837094819,-24849.85281469,0.000499,30]
[407859194,1772837094874,-151.0,0.000499,120]
[407859195,1772837094929,-151.0,0.000499,120]
[407859196,1772837094980,-151.0,0.000499,120]
[407859197,1772837095031,-160.20926,0.000499,120]
[407859198,1772837095081,-160.20926,0.000499,120]
[407859199,1772837095131,-160.20926,0.000499,120]
[407859200,1772837095183,-160.209268,0.000499,120]
[407859201,1772837095238,-151.0,0.000499,30]
[407859202,1772837095293,-251.379726,0.000499,120]
[407859203,1772837095351,-251.379726,0.000499,120]
[407859204,1772837095407,-251.379726,0.000499,120]
[407859205,1772837095462,-251.379726,0.000499,120]
[407859206,1772837095516,-151.0,0.000499,120]
[407859207,1772837095570,-151.0,0.000499,120]
[407859208,1772837095625,-12160.555093,0.000499,120]
[407859209,1772837095677,-12160.555093,0.000499,120]
[407859210,1772837095729,-151.0,0.000499,120]
[407859211,1772837095782,-12160.555093,0.000499,120]
[407859212,1772837095834,-12160.555093,0.000499,120]
[407859213,1772837095887,-151.0,0.000499,120]
[407859214,1772837095939,-150.0,0.00049921,30]
[407859215,1772837095992,-159.49661076,0.00049932,30]
[407859216,1772837096045,-237.39121081,0.00049932,30]
[407859217,1772837096099,-178.56416906,0.00049932,30]
[407859218,1772837096151,-259.39398879,0.00049932,30]
[407859219,1772837096205,-496.10721813,0.00049932,30]
[407859220,1772837096259,-196.401106,0.00049932,30]
[407859221,1772837096313,-1211.33,0.00049948,120]
[407859222,1772837096368,-150.0,0.00049961,30]
[407859223,1772837096422,-150.0,0.00049976,30]
[407859224,1772837096474,-500.0,0.0004998,40]
[407859225,1772837096526,-500.0,0.0004998,40]
[407859226,1772837096578,-500.0,0.0004998,40]
[407859227,1772837096787,-500.0,0.0004998,40]
[407859228,1772837096839,-500.0,0.0004998,40]
[407859229,1772837096891,-500.0,0.0004998,40]
[407859230,1772837096944,-500.0,0.0004998,40]
[407859231,1772837096996,-328.37706565,0.0004998,40]
[407859232,1772837097047,-150.0,0.00049982,30]
[407859233,1772837097101,-159.49661076,0.00049984,30]
[407859234,1772837097154,-237.39121081,0.00049984,30]
[407859235,1772837097206,-178.56416906,0.00049984,30]
[407859236,1772837097261,-259.39398879,0.00049984,30]
[407859237,1772837097314,-496.10721813,0.00049984,30]
[407859238,1772837097366,-196.401106,0.00049984,30]
[407859239,1772837097420,-150.0,0.00049991,30]
[407859240,1772837097474,-150.0,0.00049998,30]
[407859241,1772837097527,-150.0,0.00049998,30]
[407859242,1772837097581,-576.66438311,0.00049999,120]
[407859243,1772837097637,-496.34503294,0.00049999,120]
[407859244,1772837097694,-50000.0,0.0005,72]
[407859245,1772837097752,-5704.25644489,0.0005,54]
[407859246,1772837097805,-202323.0,0.0005,120]
[407859247,1772837097866,-1345000.0,0.0005,101]
[407859248,1772837097926,-1000000.0,0.0005,70]
[407859249,1772837097986,-1000000.0,0.0005,67]
[407859250,1772837098038,-4912.6127552,0.0005,120]
[407859251,1772837098092,-500.0,0.0005,120]
[407859252,1772837098146,-9947.19949863,0.0005,120]
[407859253,1772837098200,-45923.51236012,0.0005,120]
[407859254,1772837098254,-33785.5553685,0.0005,30]
[407859255,1772837098309,-150.0,0.0005,40]
[407859256,1772837098364,-261.33,0.0005,120]
[407859257,1772837098419,-4078.0,0.0005,120]
[407859258,1772837098474,-535.81398365,0.0005,120]
[407859259,1772837098529,-1228.3884,0.0005,120]
[407859260,1772837098583,-173.62835211,0.0005,120]
[407859261,1772837098636,-15483.99987201,0.0005,120]
[407859262,1772837098688,-377.45040917,0.0005,120]
[407859263,1772837098739,-511.46224489,0.0005,120]
[407859264,1772837098791,-68961.81451005,0.0005,120]
[407859265,1772837098842,-195.12106327,0.0005,120]
[407859266,1772837098895,-1180.2724725,0.0005,120]
[407859267,1772837098954,-1104.55692844,0.0005,120]
[407859268,1772837099006,-689.36545699,0.0005,120]
[407859269,1772837099059,-226.69387008,0.0005,120]
[407859270,1772837099113,-455.32941589,0.0005,120]
[407859271,1772837099166,-295.36070479,0.0005,120]
[407859272,1772837099221,-179.84344856,0.0005,120]
[407859273,1772837099275,-512.89477954,0.0005,120]
[407859274,1772837099333,-410.2627384,0.0005,120]
[407859275,1772837099390,-200.0,0.0005,120]
[407859276,1772837099444,-161.18858447,0.0005,120]
[407859277,1772837099499,-288.12912853,0.0005,120]
[407859278,1772837099555,-1502.11821486,0.0005,120]
[407859279,1772837099612,-633.49,0.0005,120]
[407859280,1772837099666,-20000.0,0.0005,120]
[407859281,1772837099719,-10000.0,0.0005,120]
[407859282,1772837099774,-500000.0,0.0005,120]
[407859283,1772837099828,-500000.0,0.0005,120]
[407859284,1772837099881,-75466.0,0.0005,30]
[407859285,1772837099937,-249441.45579,0.0005,120]
[407859286,1772837099992,-689.0,0.0005,30]
[407859287,1772837100048,-178.96,0.0005,120]
[407859288,1772837100105,-454483.66,0.0005,120]
[407859289,1772837100162,-3799.0,0.0005,120]
[407859290,1772837100221,-348.35457207,0.0005,120]
[407859291,1772837100276,-43300.0,0.0005,120]
[407859292,1772837100334,-4300.0,0.0005,120]
[407859293,1772837100390,-14250.01760824,0.0005,120]
[407859294,1772837100445,-152.0,0.0005,120]
[407859295,1772837100500,-154.0,0.0005,120]
[407859296,1772837100555,-298.0,0.0005,120]
[407859297,1772837100613,-600.0,0.0005,120]
[407859298,1772837100673,-840.0,0.0005,120]
[407859299,1772837100728,-251.379726,0.0005,120]
[407859300,1772837100781,-251.379726,0.0005,120]
[407859301,1772837100834,-251.379726,0.0005,120]
[407859302,1772837100889,-251.379726,0.0005,120]
[407859303,1772837100944,-151.0,0.0005,120]
[407859304,1772837101002,-151.0,0.0005,120]
[407859305,1772837101058,-12160.555093,0.0005,120]
[407859306,1772837101114,-12160.555093,0.0005,120]
[407859307,1772837101169,-12160.555093,0.0005,120]
[407859308,1772837101225,-12160.555093,0.0005,120]
[407859309,1772837101278,-151.0,0.0005,120]
[407859310,1772837101334,-151.0,0.0005,120]
[407859311,1772837101392,-12160.555093,0.0005,120]
[407859312,1772837101446,-12160.555093,0.0005,120]
[407859313,1772837101504,-12160.555093,0.0005,120]
[407859314,1772837101559,-12160.555093,0.0005,120]
[407859315,1772837101613,-293.117686,0.0005,120]
[407859316,1772837101667,-293.117686,0.0005,120]
[407859317,1772837101721,-293.117686,0.0005,120]
[407859318,1772837101777,-200.805006,0.0005,120]
[407859319,1772837101833,-293.117686,0.0005,120]
[407859320,1772837101890,-293.117686,0.0005,120]
[407859321,1772837101952,-293.117686,0.0005,120]
[407859322,1772837102011,-293.117686,0.0005,120]
[407859323,1772837102069,-293.117686,0.0005,120]
[407859324,1772837102125,-151.0,0.0005,120]
[407859325,1772837102180,-151.0,0.0005,120]
[407859326,1772837102251,-151.0,0.0005,120]
[407859327,1772837102304,-151.0,0.0005,120]
[407859328,1772837102359,-191.13408,0.0005,120]
[407859329,1772837102416,-180.92709,0.0005,120]
[407859330,1772837102472,-151.0,0.0005,120]
[407859331,1772837102735,-468.07502865,0.0005,120]
[407859332,1772837102791,-150.0,0.00050006,30]
[407859333,1772837102850,-150.0,0.0005003,30]
[407859334,1772837102904,-159.49661076,0.00050035,30]
[407859335,1772837102965,-237.39121081,0.00050035,30]
[407859336,1772837103018,-178.56416906,0.00050035,30]
[407859337,1772837103070,-259.39398879,0.00050035,30]
[407859338,1772837103127,-150.0,0.00050035,30]
[407859339,1772837103184,-496.10721813,0.00050035,30]
[407859340,1772837103242,-196.401106,0.00050035,30]
[407859341,1772837103299,-150.0,0.00050052,30]
[407859342,1772837103358,-150.0,0.00050061,120]
[407859343,1772837103419,-150.0,0.00050069,120]
[407859344,1772837103480,-150.0,0.0005008,30]
[407859345,1772837103539,-150.0,0.00050085,30]
[407859346,1772837103596,-159.49661076,0.00050087,30]
[407859347,1772837103661,-237.39121081,0.00050087,30]
[407859348,1772837103715,-178.56416906,0.00050087,30]
[407859349,1772837103769,-259.39398879,0.00050087,30]
[407859350,1772837103823,-496.10721813,0.00050087,30]
[407859351,1772837103876,-196.401106,0.00050087,30]
[407859352,1772837103930,-150.0,0.00050112,120]
[407859353,1772837103981,-150.0,0.00050113,30]
[407859354,1772837104034,-150.0,0.00050136,30]
[407859355,1772837104091,-150.0,0.00050136,30]
[407859356,1772837104149,-159.49661076,0.00050138,30]
[407859357,1772837104202,-237.39121081,0.00050138,30]
[407859358,1772837104256,-178.56416906,0.00050138,30]
[407859359,1772837104310,-259.39398879,0.00050138,30]
[407859360,1772837104366,-496.10721813,0.00050138,30]
[407859361,1772837104423,-196.401106,0.00050138,30]
[407859362,1772837104485,-1500.0,0.0005014,60]
[407859363,1772837104540,-2900.0,0.0005014,60]
[407859364,1772837104600,-150.0,0.0005014,30]
[407859365,1772837104655,-150.0,0.00050143,30]
[407859366,1772837104709,-469.21,0.0005015,120]
[407859367,1772837104763,-150.0,0.00050178,30]
[407859368,1772837104817,-159.49661076,0.0005019,30]
[407859369,1772837104887,-237.39121081,0.0005019,30]
[407859370,1772837104941,-178.56416906,0.0005019,30]
[407859371,1772837104996,-259.39398879,0.0005019,30]
[407859372,1772837105052,-496.10721813,0.0005019,30]
[407859373,1772837105111,-196.401106,0.0005019,30]
[407859374,1772837105169,-150.0,0.00050195,30]
[407859375,1772837105225,-222.0,0.000502,91]
[407859376,1772837105282,-150.0,0.000502,120]
[407859377,1772837105338,-150.0,0.0005021,120]
[407859378,1772837105395,-150.0,0.00050228,120]
[407859379,1772837105450,-150.0,0.00050234,30]
[407859380,1772837105510,-150.0,0.00050234,30]
[407859381,1772837105569,-218.61207107,0.00050236,120]
[407859382,1772837105626,-159.49661076,0.00050241,30]
[407859383,1772837105683,-237.39121081,0.00050241,30]
[407859384,1772837105739,-178.56416906,0.00050241,30]
[407859385,1772837105798,-259.39398879,0.00050241,30]
[407859386,1772837105857,-496.10721813,0.00050241,30]
[407859387,1772837105915,-196.401106,0.00050241,30]
[407859388,1772837105972,-150.0,0.0005025,30]
[407859389,1772837106042,-150.0,0.00050273,30]
[407859390,1772837106101,-150.0,0.00050273,30]
[407859391,1772837106161,-150.0,0.00050276,30]
[407859392,1772837106218,-159.49661076,0.00050293,30]
[407859393,1772837106276,-237.39121081,0.00050293,30]
[407859394,1772837106335,-178.56416906,0.00050293,30]
[407859395,1772837106394,-259.39398879,0.00050293,30]
[407859396,1772837106454,-496.10721813,0.00050293,30]
[407859397,1772837106513,-196.401106,0.00050293,30]
[407859398,1772837106573,-89226.87,0.000503,120]
[407859399,1772837106632,-150.0,0.00050304,30]
[407859400,1772837106689,-1211.33,0.00050306,120]
[407859401,1772837106748,-150.0,0.00050321,120]
[407859402,1772837106804,-150.0,0.00050325,30]
[407859403,1772837106862,-150.0,0.00050325,30]
[407859404,1772837106921,-150.0,0.00050331,120]
[407859405,1772837106976,-159.49661076,0.00050344,30]
[407859406,1772837107030,-237.39121081,0.00050344,30]
[407859407,1772837107086,-178.56416906,0.00050344,30]
[407859408,1772837107141,-259.39398879,0.00050344,30]
[407859409,1772837107194,-496.10721813,0.00050344,30]
[407859410,1772837107250,-196.401106,0.00050344,30]
[407859411,1772837107307,-150.0,0.00050355,30]
[407859412,1772837107365,-150.0,0.00050359,30]
[407859413,1772837107421,-467.19,0.00050367,120]
[407859414,1772837107479,-150.0,0.00050374,30]
[407859415,1772837107537,-159.49661076,0.00050396,30]
[407859416,1772837107593,-237.39121081,0.00050396,30]
[407859417,1772837107647,-178.56416906,0.00050396,30]
[407859418,1772837107702,-259.39398879,0.00050396,30]
[407859419,1772837107756,-496.10721813,0.00050396,30]
[407859420,1772837107812,-196.401106,0.00050396,30]
[407859421,1772837107871,-150.0,0.00050396,30]
[407859422,1772837107929,-150.0,0.00050409,120]
[407859423,1772837107984,-150.0,0.00050411,30]
[407859424,1772837108037,-150.0,0.00050411,30]
[407859425,1772837108093,-150.0,0.00050414,30]
[407859426,1772837108151,-150.0,0.00050416,30]
[407859427,1772837108213,-150.0,0.00050421,120]
[407859428,1772837108270,-159.49661076,0.00050447,30]
[407859429,1772837108327,-237.39121081,0.00050447,30]
[407859430,1772837108384,-178.56416906,0.00050447,30]
[407859431,1772837108440,-259.39398879,0.00050447,30]
[407859432,1772837108496,-496.10721813,0.00050447,30]
[407859433,1772837108554,-196.401106,0.00050447,30]
[407859434,1772837108612,-619.0,0.00050469,120]
[407859435,1772837108665,-1341.0,0.00050469,120]
[407859436,1772837108921,-1042.0,0.00050469,120]
[407859437,1772837108975,-150.0,0.00050469,30]
[407859438,1772837109030,-150.0,0.00050472,30]
[407859439,1772837109084,-150.0,0.00050477,30]
[407859440,1772837109142,-151.84556858,0.00050479,118]
[407859441,1772837109200,-159.49661076,0.00050499,30]
[407859442,1772837109259,-237.39121081,0.00050499,30]
[407859443,1772837109320,-178.56416906,0.00050499,30]
[407859444,1772837109380,-259.39398879,0.00050499,30]
[407859445,1772837109437,-150.0,0.00050499,30]
[407859446,1772837109497,-496.10721813,0.00050499,30]
[407859447,1772837109555,-196.401106,0.00050499,30]
[407859448,1772837109617,-431550.3929773,0.000505,90]
[407859449,1772837118494,-4881.62,0.0002,30]
[407859450,1772837118553,-4848.69,0.0002247,30]
[407859451,1772837118611,-169.69,0.00024939,60]
[407859452,1772837118679,-2000.0,0.00043055,30]
[407859453,1772837118733,-2000.0,0.00043055,30]
[407859454,1772837118788,-2000.0,0.00043055,30]
[407859455,1772837118844,-2000.0,0.00043055,30]
[407859456,1772837118901,-2000.0,0.00043055,30]
[407859457,1772837118959,-565.210601,0.00043055,30]
[407859458,1772837119018,-202.02,0.00043755,30]
[407859459,1772837119072,-202.02,0.00043768,30]
[407859460,1772837119152,-3000.0,0.00047214,120]
[407859461,1772837119213,-600.0,0.0004975,120]
[407859462,1772837119274,-150.0,0.00049863,30]
[407859463,1772837119334,-150.0,0.00049863,30]
[407859464,1772837119395,-159.588177,0.0004988,120]
[407859465,1772837119454,-151.0,0.0004988,120]
[407859466,1772837119515,-151.0,0.0004988,120]
[407859467,1772837119574,-181.099671,0.0004988,120]
[407859468,1772837119634,-701.070644,0.00049883,120]
[407859469,1772837119692,-10000.0,0.00049883,30]
[407859470,1772837119748,-10370.0,0.00049883,30]
[407859471,1772837119806,-10753.69,0.00049883,30]
[407859472,1772837119864,-11151.57653,0.00049883,30]
[407859473,1772837119924,-11564.18486161,0.00049883,30]
[407859474,1772837119980,-11992.05970149,0.00049883,30]
[407859475,1772837120040,-12435.76591044,0.00049883,30]
[407859476,1772837120098,-12895.88924913,0.00049883,30]
[407859477,1772837120155,-13373.03715135,0.00049883,30]
[407859478,1772837120215,-12521.70917923,0.00049883,30]
[407859479,1772837120276,-500.0,0.00049899,120]
[407859480,1772837120336,-997.16350561,0.00049899,120]
[407859481,1772837120393,-539.0,0.00049899,120]
[407859482,1772837120453,-500.0,0.00049899,120]
[407859483,1772837120511,-500.0,0.00049899,120]
[407859484,1772837120568,-500.0,0.00049899,120]
[407859485,1772837120623,-1223.0,0.00049899,120]
[407859486,1772837120680,-500.0,0.00049899,120]
[407859487,1772837120735,-590.0,0.00049899,120]
[407859488,1772837120792,-500.0,0.00049899,120]
[407859489,1772837120850,-500.0,0.00049899,120]
[407859490,1772837120915,-500.0,0.00049899,120]
[407859491,1772837120973,-500.0,0.00049899,120]
[407859492,1772837121030,-500.0,0.00049899,120]
[407859493,1772837121090,-500.0,0.00049899,120]
[407859494,1772837121147,-1035.0,0.00049899,120]
[407859495,1772837121202,-539.0,0.00049899,120]
[407859496,1772837121261,-1035.0,0.00049899,120]
[407859497,1772837121319,-1035.0,0.00049899,120]
[407859498,1772837121380,-500.0,0.00049899,120]
[407859499,1772837121441,-1035.0,0.00049899,120]
[407859500,1772837121500,-1035.0,0.00049899,120]
[407859501,1772837121556,-1035.0,0.00049899,120]
[407859502,1772837121614,-500.0,0.00049899,120]
[407859503,1772837121671,-1035.0,0.00049899,120]
[407859504,1772837121728,-1223.0,0.00049899,120]
[407859505,1772837121782,-1035.0,0.00049899,120]
[407859506,1772837121836,-1035.0,0.00049899,120]
[407859507,1772837121891,-1035.0,0.00049899,120]
[407859508,1772837121946,-500.0,0.00049899,120]
[407859509,1772837121999,-1035.0,0.00049899,120]
[407859510,1772837122055,-590.0,0.00049899,120]
[407859511,1772837122111,-1035.0,0.00049899,120]
[407859512,1772837122167,-1035.0,0.00049899,120]
[407859513,1772837122222,-1035.0,0.00049899,120]
[407859514,1772837122276,-500.0,0.00049899,120]
[407859515,1772837122336,-1035.0,0.00049899,120]
[407859516,1772837122396,-500.0,0.00049899,120]
[407859517,1772837122464,-1035.0,0.00049899,120]
[407859518,1772837122525,-1035.0,0.00049899,120]
[407859519,1772837122584,-1035.0,0.00049899,120]
[407859520,1772837122639,-1035.0,0.00049899,120]
[407859521,1772837122697,-539.0,0.00049899,120]
[407859522,1772837122758,-1035.0,0.00049899,120]
[407859523,1772837122811,-1223.0,0.00049899,120]
[407859524,1772837122867,-500.0,0.00049899,120]
[407859525,1772837122924,-1035.0,0.00049899,120]
[407859526,1772837122977,-590.0,0.00049899,120]
[407859527,1772837123033,-500.0,0.00049899,120]
[407859528,1772837123087,-1035.0,0.00049899,120]
[407859529,1772837123142,-500.0,0.00049899,120]
[407859530,1772837123195,-539.0,0.00049899,120]
[407859531,1772837123249,-500.0,0.00049899,120]
[407859532,1772837123307,-500.0,0.00049899,120]
[407859533,1772837123363,-1035.0,0.00049899,120]
[407859534,1772837123419,-500.0,0.00049899,120]
[407859535,1772837123481,-500.0,0.00049899,120]
[407859536,1772837123539,-503.7276498,0.00049899,120]
[407859537,1772837123596,-1223.0,0.00049899,120]
[407859538,1772837123876,-590.0,0.00049899,120]
[407859539,1772837123936,-590.0,0.00049899,120]
[407859540,1772837123992,-590.0,0.00049899,120]
[407859541,1772837124048,-590.0,0.00049899,120]
[407859542,1772837124105,-590.0,0.00049899,120]
[407859543,1772837124163,-590.0,0.00049899,120]
[407859544,1772837124221,-500.0,0.00049899,120]
[407859545,1772837124280,-1057.10830012,0.00049899,120]
[407859546,1772837124342,-590.0,0.00049899,120]
[407859547,1772837124401,-500.0,0.00049899,120]
[407859548,1772837124464,-590.0,0.00049899,120]
[407859549,1772837124525,-500.0,0.00049899,120]
[407859550,1772837124580,-590.0,0.00049899,120]
[407859551,1772837124637,-500.0,0.00049899,120]
[407859552,1772837124693,-590.0,0.00049899,120]
[407859553,1772837124747,-500.0,0.00049899,120]
[407859554,1772837124799,-590.0,0.00049899,120]
[407859555,1772837124852,-353.05265083,0.00049899,120]
[407859556,1772837124908,-590.0,0.00049899,120]
[407859557,1772837124969,-590.0,0.00049899,120]
[407859558,1772837125024,-590.0,0.00049899,120]
[407859559,1772837125084,-590.0,0.00049899,120]
[407859560,1772837125143,-590.0,0.00049899,120]
[407859561,1772837125203,-590.0,0.00049899,120]
[407859562,1772837125262,-590.0,0.00049899,120]
[407859563,1772837125320,-590.0,0.00049899,120]
[407859564,1772837125379,-590.0,0.00049899,120]
[407859565,1772837125435,-448.13306399,0.00049899,120]
[407859566,1772837125507,-1223.0,0.00049899,120]
[407859567,1772837125567,-1223.0,0.00049899,120]
[407859568,1772837125625,-1223.0,0.00049899,120]
[407859569,1772837125680,-1223.0,0.00049899,120]
[407859570,1772837125736,-1223.0,0.00049899,120]
[407859571,1772837125791,-1223.0,0.00049899,120]
[407859572,1772837125845,-1223.0,0.00049899,120]
[407859573,1772837125899,-1223.0,0.00049899,120]
[407859574,1772837125957,-1223.0,0.00049899,120]
[407859575,1772837126012,-1223.0,0.00049899,120]
[407859576,1772837126068,-1223.0,0.00049899,120]
[407859577,1772837126123,-1223.0,0.00049899,120]
[407859578,1772837126178,-1223.0,0.00049899,120]
[407859579,1772837126233,-1223.0,0.00049899,120]
[407859580,1772837126289,-1223.0,0.00049899,120]
[407859581,1772837126345,-1223.0,0.00049899,120]
[407859582,1772837126406,-1223.0,0.00049899,120]
[407859583,1772837126463,-1223.0,0.00049899,120]
[407859584,1772837126518,-1241.97544296,0.00049899,120]
[407859585,1772837126574,-539.0,0.00049899,120]
[407859586,1772837126630,-539.0,0.00049899,120]
[407859587,1772837126687,-539.0,0.00049899,120]
[407859588,1772837126743,-539.0,0.00049899,120]
[407859589,1772837126802,-539.0,0.00049899,120]
[407859590,1772837126859,-539.0,0.00049899,120]
[407859591,1772837126917,-539.0,0.00049899,120]
[407859592,1772837126970,-539.0,0.00049899,120]
[407859593,1772837127025,-539.0,0.00049899,120]
[407859594,1772837127077,-539.0,0.00049899,120]
[407859595,1772837127130,-539.0,0.00049899,120]
[407859596,1772837127186,-539.0,0.00049899,120]
[407859597,1772837127241,-539.0,0.00049899,120]
[407859598,1772837127301,-539.0,0.00049899,120]
[407859599,1772837127359,-539.0,0.00049899,120]
[407859600,1772837127417,-539.0,0.00049899,120]
[407859601,1772837127473,-539.0,0.00049899,120]
[407859602,1772837127528,-539.0,0.00049899,120]
[407859603,1772837127582,-560.85597871,0.00049899,120]
[407859604,1772837127637,-150.0,0.00049902,30]
[407859605,1772837127691,-150.0,0.00049942,30]
[407859606,1772837127747,-150.0,0.00049981,30]
[407859607,1772837127800,-474.38159416,0.00049999,120]
[407859608,1772837127853,-388.0170195,0.00049999,120]
[407859609,1772837127909,-394.25270121,0.00049999,120]
[407859610,1772837127969,-500.0,0.0005,60]
[407859611,1772837128024,-151.0,0.0005,120]